bitfinex/quotes_ETHUSD_20251217
["timestamp","ask_amount","ask_price","bid_price","bid_amount"]
[1765937306176,8.88484009,2952.8,2952.7,0.002]
[1765937306727,8.88654009,2952.8,2952.7,0.002]
[1765937307358,15.02184209,2952.8,2952.7,0.002]
[1765937307528,10.37639409,2952.8,2952.7,0.002]
[1765937308139,9.84848909,2952.8,2952.7,0.002]
[1765937308368,9.84848909,2952.8,2952.7,0.9501]
[1765937308369,3.38661609,2952.8,2952.7,0.9501]
[1765937308567,3.38592808,2953.4,2953.2,0.4652]
[1765937308736,0.4829,2953.8,2953.7,0.4652]
[1765937308936,0.0017,2953.8,2953.5,0.4829]
[1765937309136,20.697875,2953.8,2952.8,0.4829]
[1765937309442,0.405504,2953.7,2952.8,0.4829]
[1765937309641,17.369675,2953.6,2952.8,0.4829]
[1765937310563,16.87856044,2953.5,2953.4,0.4652]
[1765937311070,0.405504,2953.4,2952.8,0.4825303]
[1765937311273,0.405504,2953.4,2952.7,0.002]
[1765937311274,30.0017,2953.3,2952.7,0.002]
[1765937311439,30.0,2953.1,2952.7,0.002]
[1765937312166,30.0,2953.3,2952.7,0.4849]
[1765937312355,30.0,2953.1,2952.7,0.002]
[1765937312676,6.77277344,2953.0,2952.7,0.002]
[1765937312974,3.38638672,2953.0,2952.7,0.4849]
[1765937313140,6.77277344,2953.0,2952.7,0.4849]
[1765937313342,6.77277344,2953.0,2952.7,0.002]
[1765937313675,0.0017,2952.8,2952.7,0.002]
[1765937315144,0.407204,2953.1,2952.7,0.002]
[1765937315344,1.46205219,2953.1,2952.7,0.002]
[1765937316041,0.0017,2952.8,2952.7,0.002]
[1765937316241,30.407204,2952.8,2952.7,0.002]
[1765937316445,18.905123,2952.8,2952.7,0.002]
[1765937316646,18.565901,2952.8,2952.7,0.002]
[1765937316843,20.74927719,2952.8,2952.7,0.002]
[1765937317144,15.97184519,2952.8,2952.7,0.4643]
[1765937317481,19.97286119,2952.8,2952.7,0.002]
[1765937318383,20.35511419,2952.8,2952.7,0.002]
[1765937319381,22.33760219,2952.8,2952.7,0.002]
[1765937319775,21.01180219,2952.8,2952.7,0.002]
[1765937320459,25.19751419,2952.8,2952.7,0.002]
[1765937320862,21.35276319,2952.8,2952.7,0.002]
[1765937321260,21.35446319,2952.8,2952.7,0.002]
[1765937321558,25.19750919,2952.8,2952.7,0.002]
[1765937321758,23.68976519,2952.8,2952.7,0.002]
[1765937322284,22.97566419,2952.8,2952.7,0.002]
[1765937322576,23.78060519,2952.8,2952.7,0.002]
[1765937323491,26.72235119,2952.8,2952.7,0.002]
[1765937323653,24.24387119,2952.8,2952.7,0.002]
[1765937323860,17.90845409,2952.8,2952.7,0.4643]
[1765937324062,3.38661609,2952.8,2952.7,0.9227]
[1765937324461,16.89528309,2952.8,2952.7,0.9227]
[1765937324663,13.41622809,2952.8,2952.7,0.9227]
[1765937324979,6.458,2952.8,2952.7,0.9227]
[1765937325172,11.486489,2952.8,2952.7,0.9227]
[1765937325475,14.196023,2952.8,2952.7,0.4643]
[1765937326577,17.58243909,2952.8,2952.7,0.4643]
[1765937326778,16.63219409,2952.8,2952.7,0.4643]
[1765937326978,16.33796409,2952.8,2952.7,0.4643]
[1765937327351,6.458,2952.8,2952.7,0.9227]
[1765937328493,4.79169767,2953.5,2953.4,0.4623]
[1765937328671,23.77379053,2953.5,2953.4,0.4623]
[1765937328851,23.23779053,2953.5,2953.4,0.4623]
[1765937329050,17.67912653,2953.5,2953.4,0.4623]
[1765937329684,17.68141453,2953.5,2953.4,0.4623]
[1765937330783,18.02055853,2953.5,2953.4,0.4623]
[1765937331688,17.68141453,2953.5,2953.4,0.4623]
[1765937331981,14.13432553,2953.5,2953.4,0.4623]
[1765937332782,16.77857253,2953.5,2953.4,0.4623]
[1765937333083,15.90132553,2953.5,2953.4,0.4623]
[1765937333282,5.63144844,2953.5,2953.4,0.9207]
[1765937333881,7.21863644,2953.5,2953.4,0.9207]
[1765937334255,7.21863644,2953.5,2953.4,0.4623]
[1765937334754,29.85226044,2953.5,2953.4,0.4623]
[1765937335353,24.32239,2953.4,2953.3,0.4623]
[1765937335772,6.77162688,2953.5,2952.8,0.4584]
[1765937335975,23.987154,2953.4,2953.3,0.4623]
[1765937336354,7.21758344,2953.5,2953.4,0.9207]
[1765937336781,7.21858344,2953.5,2953.4,0.9207]
[1765937337256,22.40704144,2953.5,2953.4,0.9207]
[1765937338361,22.74617944,2953.5,2953.4,0.9207]
[1765937338565,0.405504,2953.4,2952.8,0.4584]
[1765937338766,14.168222,2953.3,2952.7,0.002]
[1765937338999,14.169922,2953.3,2952.7,0.002]
[1765937339173,0.0017,2952.8,2952.7,0.002]
[1765937339382,30.407204,2952.8,2952.7,0.002]
[1765937339584,32.01166903,2952.8,2952.7,0.002]
[1765937340395,22.10538503,2952.8,2952.7,0.002]
[1765937340792,22.10708503,2952.8,2952.7,0.002]
[1765937340969,30.408904,2952.7,2952.6,0.002]
[1765937341170,30.87328423,2952.5,2951.5,0.4604]
[1765937341370,46.42232168,2952.5,2951.5,0.002]
[1765937341592,0.0017,2951.6,2951.5,0.002]
[1765937342905,25.961199,2951.6,2951.5,0.002]
[1765937343112,12.114772,2951.6,2951.5,0.002]
[1765937343406,15.50276495,2951.6,2951.5,0.002]
[1765937343565,17.39199869,2951.6,2951.5,0.002]
[1765937344112,36.68651092,2951.6,2951.5,0.002]
[1765937344568,15.997286,2951.2,2950.6,0.4358]
[1765937344774,27.603042,2951.3,2950.6,0.4358]
[1765937345284,24.620468,2951.3,2950.6,0.4358]
[1765937346191,30.405504,2951.2,2950.3,0.186]
[1765937346523,13.507504,2951.0,2950.9,0.4915]
[1765937346672,0.72396232,2951.3,2950.4,0.4818]
[1765937346673,29.5266,2951.2,2950.4,0.4818]
[1765937347008,27.036935,2951.1,2950.4,0.4818]
[1765937348078,30.0,2951.2,2950.4,0.4818]
[1765937348281,30.0,2951.1,2950.4,0.4818]
[1765937349002,21.090657,2951.1,2950.4,0.4818]
[1765937350211,21.090657,2951.1,2951.0,0.4915]
[1765937350506,11.17124523,2951.5,2951.4,0.4915]
[1765937350720,10.76574123,2951.5,2951.4,0.4915]
[1765937351306,16.945235,2951.4,2951.3,0.4915]
[1765937351511,15.154028,2951.4,2951.3,0.9733]
[1765937351685,8.522534,2951.4,2951.3,0.9733]
[1765937352091,8.522534,2951.4,2951.3,0.4915]
[1765937352479,12.937892,2951.4,2951.3,0.4915]
[1765937352880,0.46438023,2951.5,2951.4,0.9733]
[1765937353082,0.0477,2951.9,2951.4,0.9733]
[1765937353083,0.0477,2951.9,2951.4,0.4915]
[1765937353406,0.46438023,2951.7,2951.6,0.4915]
[1765937353580,3.609504,2951.9,2951.6,0.4915]
[1765937353785,6.001936,2951.8,2951.7,0.4915]
[1765937354022,7.571223,2952.2,2951.8,0.4818]
[1765937354631,7.800282,2952.2,2951.8,0.4818]
[1765937354808,16.880443,2952.6,2952.1,1.1627]
[1765937354982,24.32760423,2952.4,2952.3,0.4915]
[1765937355187,5.43703523,2952.4,2952.3,0.4915]
[1765937355388,4.062756,2952.5,2952.4,0.9733]
[1765937355727,17.60139883,2952.5,2952.4,0.9733]
[1765937355919,13.91025483,2952.5,2952.4,0.9733]
[1765937356224,5.30510583,2952.5,2952.4,0.9733]
[1765937356624,0.405504,2952.8,2952.7,0.4915]
[1765937356789,0.46438023,2952.6,2952.1,0.6712]
[1765937356986,20.027541,2952.5,2952.1,0.1894]
[1765937357626,20.027541,2952.5,2952.4,0.4915]
[1765937357952,12.702274,2952.4,2952.1,0.1894]
[1765937358155,12.702274,2952.4,2951.6,0.536]
[1765937358449,0.46438023,2951.9,2951.2,0.4818]
[1765937358625,16.306619,2951.8,2951.2,0.4818]
[1765937361150,16.306619,2951.8,2950.6,3.38912303]
[1765937361151,0.46438023,2951.1,2950.4,0.4838]
[1765937361326,28.47863,2951.0,2950.4,0.4838]
[1765937361524,21.849116,2951.0,2950.4,0.4838]
[1765937361728,2.23134962,2950.9,2950.4,0.4838]
[1765937361950,14.705823,2950.8,2950.5,0.002]
[1765937362456,2.23134962,2950.9,2950.8,0.9733]
[1765937362654,0.46438023,2951.1,2950.9,0.4915]
[1765937362655,7.645207,2951.0,2950.9,0.4915]
[1765937362841,0.537,2951.2,2951.1,0.4915]
[1765937363159,6.31485223,2951.2,2951.1,0.4915]
[1765937363932,8.73975823,2951.2,2951.1,0.4915]
[1765937364334,4.50548023,2951.2,2951.1,0.4915]
[1765937364554,4.95602825,2951.2,2951.1,0.4915]
[1765937365069,6.69637725,2951.2,2951.1,0.4915]
[1765937365237,5.05655902,2951.2,2951.1,0.4915]
[1765937365779,6.79995723,2951.7,2951.6,0.4915]
[1765937366063,14.617987,2952.4,2951.7,0.4818]
[1765937366271,0.46438023,2952.1,2952.0,0.4915]
[1765937366440,18.08411878,2952.1,2952.0,0.4915]
[1765937366639,14.085042,2952.0,2951.7,0.4818]
[1765937367180,10.632128,2952.0,2951.7,0.4818]
[1765937367966,20.60935078,2952.1,2952.0,0.4915]
[1765937368767,1.92273655,2952.1,2952.0,0.4915]
[1765937368968,14.737203,2952.2,2952.0,0.4915]
[1765937369736,14.737203,2952.2,2951.3,0.4818]
[1765937370764,0.0477,2952.1,2951.3,0.4818]
[1765937370975,29.707044,2952.0,2951.3,0.4818]
[1765937371276,10.570158,2951.8,2951.7,0.4915]
[1765937371460,19.412693,2951.7,2951.2,0.4818]
[1765937371636,30.0,2951.6,2951.1,0.1894]
[1765937371841,28.86358,2951.4,2950.9,0.4818]
[1765937372067,27.586806,2951.4,2950.9,0.4818]
[1765937372893,26.345462,2951.4,2950.9,0.4818]
[1765937373390,26.345462,2951.4,2950.6,0.4818]
[1765937373910,26.345462,2951.4,2950.6,3.38908396]
[1765937374087,21.80504,2951.3,2950.6,0.4929]
[1765937374283,16.166294,2951.3,2950.6,0.4929]
[1765937374488,8.851052,2951.3,2951.2,0.4671]
[1765937374814,6.732738,2951.3,2951.2,0.96]
[1765937375114,13.766998,2951.4,2951.3,0.4671]
[1765937375611,12.327498,2951.4,2951.3,0.4671]
[1765937375916,9.494703,2951.3,2950.7,0.4816]
[1765937377894,17.342149,2951.2,2950.7,0.4816]
[1765937379700,11.070693,2951.2,2951.1,0.4965]
[1765937380332,7.039853,2951.2,2951.1,1.1715]
[1765937380826,11.710909,2951.3,2951.2,0.9781]
[1765937381528,11.710909,2951.3,2951.2,0.4965]
[1765937382031,11.204247,2951.3,2951.2,0.4965]
[1765937382236,11.204247,2951.3,2950.5,0.002]
[1765937382237,0.0477,2951.2,2950.5,0.002]
[1765937382420,14.432927,2951.1,2950.6,0.4816]
[1765937382625,19.537695,2951.2,2950.6,0.4816]
[1765937383902,18.71512,2951.2,2950.6,0.4816]
[1765937384428,20.591502,2951.2,2950.6,0.4816]
[1765937384635,20.772262,2951.1,2950.6,0.4816]
[1765937384927,20.772262,2951.1,2950.5,0.002]
[1765937385133,20.772262,2951.1,2950.5,0.4836]
[1765937385343,20.772262,2951.1,2950.5,0.002]
[1765937385542,24.162657,2950.9,2950.5,0.4836]
[1765937385904,21.021788,2950.9,2950.8,0.4965]
[1765937386106,16.30158,2950.9,2950.8,0.4965]
[1765937386436,14.701705,2950.9,2950.8,0.4965]
[1765937387015,16.286558,2950.9,2950.8,0.4965]
[1765937387223,15.955072,2950.9,2950.8,0.4965]
[1765937388036,16.625104,2950.9,2950.8,0.4965]
[1765937388241,18.51947084,2950.9,2950.8,0.4965]
[1765937388413,17.79076384,2950.9,2950.8,0.4965]
[1765937388934,16.25660284,2950.9,2950.8,0.4965]
[1765937389135,16.25660284,2950.9,2950.8,0.9781]
[1765937389136,17.42973284,2950.9,2950.8,0.9781]
[1765937389338,6.80541,2951.1,2951.0,0.9781]
[1765937389634,10.71394223,2951.2,2951.1,0.4965]
[1765937390008,12.99313723,2951.2,2951.1,0.4965]
[1765937390238,16.14424,2951.0,2950.9,0.4965]
[1765937390536,17.411529,2950.9,2950.5,0.002]
[1765937390716,25.671199,2951.0,2950.5,0.002]
[1765937390917,19.908767,2950.9,2950.5,0.002]
[1765937391125,30.0,2951.1,2950.7,0.4965]
[1765937391331,30.0,2951.1,2950.7,0.9781]
[1765937391332,24.102597,2951.0,2950.7,0.9781]
[1765937391647,19.908767,2950.9,2950.7,0.9781]
[1765937392030,19.908767,2950.9,2950.7,0.4965]
[1765937392238,2.45669772,2951.0,2950.5,0.4836]
[1765937392239,0.0477,2950.8,2950.5,0.4836]
[1765937392936,17.670378,2950.9,2950.8,0.4965]
[1765937393136,17.720831,2950.9,2950.8,0.4965]
[1765937393438,9.375719,2950.9,2950.8,0.4965]
[1765937393740,25.46010323,2951.1,2951.0,0.4965]
[1765937393945,26.74325955,2951.1,2951.0,0.4965]
[1765937394147,26.58138855,2951.1,2951.0,0.4965]
[1765937394445,9.87929055,2951.1,2951.0,0.9781]
[1765937395150,10.27032955,2951.1,2951.0,0.9781]
[1765937395445,9.80594932,2951.1,2951.0,0.9781]
[1765937395847,5.768574,2951.1,2951.0,0.9781]
[1765937396149,6.458,2951.2,2951.1,1.1715]
[1765937396150,17.47863323,2951.2,2951.1,1.1715]
[1765937396448,17.014253,2951.2,2951.1,1.1715]
[1765937396649,16.578207,2951.2,2951.1,1.1715]
[1765937397350,17.011047,2951.2,2951.1,1.1715]
[1765937397649,18.7659517,2951.2,2951.1,1.1715]
[1765937398229,20.8303587,2951.2,2951.1,1.1715]
[1765937399150,20.3298047,2951.2,2951.1,1.1715]
[1765937399520,18.8408837,2951.2,2951.1,1.1715]
[1765937400028,18.3487537,2951.2,2951.1,1.1715]
[1765937400322,3.203886,2951.2,2951.1,1.1715]
[1765937400522,0.001,2951.3,2951.2,0.9781]
[1765937401339,0.001,2951.3,2951.2,5.8074879]
[1765937401748,30.0487,2951.3,2950.6,0.4816]
[1765937401947,30.0,2951.1,2951.0,0.4965]
[1765937403025,30.0,2951.1,2951.0,0.9781]
[1765937403426,16.67718,2951.1,2951.0,0.9781]
[1765937403621,30.472799,2951.2,2951.1,1.1715]
[1765937404350,30.0,2951.0,2950.5,0.4941]
[1765937404535,30.0,2950.8,2950.5,0.002]
[1765937404720,0.537,2950.8,2950.5,0.002]
[1765937404921,30.0477,2950.6,2950.5,0.002]
[1765937405122,30.453204,2950.6,2950.5,0.002]
[1765937406229,30.500904,2950.6,2950.5,0.002]
[1765937406550,30.453204,2950.6,2950.5,0.002]
[1765937407152,30.96528423,2950.6,2950.5,0.002]
[1765937407451,33.84332938,2950.6,2950.5,0.002]
[1765937407653,33.84332938,2950.6,2950.5,0.4549]
[1765937407859,33.84332938,2950.6,2950.5,0.947]
[1765937408227,24.58200238,2950.6,2950.5,0.947]
[1765937408419,21.20305323,2950.6,2950.5,0.947]
[1765937408820,29.60471823,2950.6,2950.5,0.947]
[1765937409052,29.60471823,2950.6,2950.5,0.4549]
[1765937409230,29.60471823,2950.6,2950.5,0.002]
[1765937409231,29.65241823,2950.6,2950.5,0.002]
[1765937409438,30.05792223,2950.6,2950.5,0.002]
[1765937409627,33.16511445,2950.6,2950.5,0.002]
[1765937409957,34.02477645,2950.6,2950.5,0.002]
[1765937410336,33.97707645,2950.6,2950.5,0.002]
[1765937411226,34.02477645,2950.6,2950.5,0.002]
[1765937411462,33.97707645,2950.6,2950.5,0.002]
[1765937411651,34.02477645,2950.6,2950.5,0.002]
[1765937411831,33.97707645,2950.6,2950.5,0.002]
[1765937412032,34.02477645,2950.6,2950.5,0.002]
[1765937413167,33.97707645,2950.6,2950.5,0.002]
[1765937413748,34.10857245,2950.6,2950.5,0.002]
[1765937414170,31.00138023,2950.6,2950.5,0.947]
[1765937414540,25.293915,2950.8,2950.7,0.945]
[1765937414759,25.60859,2950.8,2950.7,0.945]
[1765937414933,9.01976023,2950.8,2950.7,0.945]
[1765937415769,0.0477,2950.6,2950.5,0.002]
[1765937415975,30.0477,2950.6,2950.5,0.002]
[1765937416842,30.0,2950.7,2950.5,0.002]
[1765937417241,30.0,2950.7,2950.6,0.4529]
[1765937417433,10.926303,2950.7,2950.6,0.945]
[1765937417637,6.56346,2950.7,2950.6,0.945]
[1765937417864,6.56346,2950.7,2950.5,0.002]
[1765937417865,0.001,2950.8,2950.7,0.945]
[1765937418037,3.289442,2950.8,2950.7,0.945]
[1765937418237,2.967057,2950.8,2950.7,0.945]
[1765937418434,0.001,2950.8,2950.7,1.71753751]
[1765937418635,0.001,2950.8,2950.7,0.945]
[1765937419255,30.001,2950.8,2950.5,0.002]
[1765937419472,30.0477,2950.6,2950.5,0.002]
[1765937419938,30.0,2950.7,2950.6,0.4529]
[1765937420137,21.166029,2950.7,2950.6,0.945]
[1765937420463,14.854115,2950.8,2950.7,0.945]
[1765937420635,7.702325,2950.8,2950.7,0.945]
[1765937420964,30.0,2950.7,2950.5,0.002]
[1765937421470,30.001,2950.7,2950.6,0.4529]
[1765937422371,0.001,2950.7,2950.6,0.4529]
[1765937422575,30.001,2950.7,2950.6,0.4529]
[1765937422774,27.323628,2950.7,2950.6,0.4529]
[1765937422952,26.895396,2950.7,2950.6,0.4529]
[1765937423574,21.149201,2950.7,2950.6,0.4529]
[1765937424359,17.194678,2950.7,2950.6,0.4529]
[1765937424565,16.892385,2950.7,2950.6,0.945]
[1765937424963,7.7012,2950.7,2950.6,0.945]
[1765937425479,12.08977,2950.7,2950.6,0.945]
[1765937425778,9.044552,2950.7,2950.6,0.945]
[1765937426142,6.2012,2950.7,2950.6,0.945]
[1765937426365,4.5011,2950.7,2950.6,0.945]
[1765937426565,3.204093,2950.7,2950.6,0.945]
[1765937427677,6.2011,2950.7,2950.6,0.945]
[1765937427976,4.7011,2950.7,2950.6,0.945]
[1765937428469,3.2011,2950.7,2950.6,0.945]
[1765937428673,0.001,2950.7,2950.6,0.945]
[1765937428850,4.7011,2950.7,2950.6,0.945]
[1765937429779,6.2011,2950.7,2950.6,0.945]
[1765937430479,4.7011,2950.7,2950.6,0.945]
[1765937430679,0.001,2950.7,2950.6,0.945]
[1765937430863,4.7011,2950.7,2950.6,0.945]
[1765937431382,3.2011,2950.7,2950.6,0.945]
[1765937431771,0.001,2950.7,2950.6,0.945]
[1765937431976,3.191257,2950.7,2950.6,0.945]
[1765937432986,4.691257,2950.7,2950.6,0.945]
[1765937434880,6.191257,2950.7,2950.6,0.945]
[1765937436778,0.001,2950.7,2950.6,0.945]
[1765937436979,6.191257,2950.7,2950.6,0.945]
[1765937437490,0.001,2950.7,2950.6,0.945]
[1765937437788,0.001,2950.7,2950.6,11.86479466]
[1765937437988,0.001,2951.3,2951.2,1.1298]
[1765937438685,0.538,2952.1,2951.2,0.1875]
[1765937438686,30.0517,2951.9,2951.2,0.1875]
[1765937438874,30.0,2951.8,2951.4,0.4877]
[1765937439057,30.0,2951.8,2951.7,0.4546]
[1765937439260,15.225982,2951.8,2951.7,0.9423]
[1765937439484,14.225982,2951.8,2951.7,0.9423]
[1765937439805,0.001,2951.9,2951.8,0.4546]
[1765937439968,17.226761,2951.9,2951.8,0.4546]
[1765937440171,14.782534,2951.9,2951.8,0.4546]
[1765937440469,14.833234,2951.9,2950.4,0.002]
[1765937440670,30.0507,2951.6,2950.7,0.4877]
[1765937440876,30.0507,2951.4,2950.5,0.4897]
[1765937441064,27.633989,2951.3,2950.5,0.4897]
[1765937441389,26.452155,2951.3,2950.6,0.4877]
[1765937442593,13.340974,2951.3,2951.2,0.9423]
[1765937443108,13.340974,2951.3,2951.2,0.4546]
[1765937443712,24.302142,2951.3,2951.2,0.4546]
[1765937444493,24.302142,2951.3,2950.9,0.6752]
[1765937444700,24.770292,2951.2,2950.6,0.4877]
[1765937445296,29.669429,2951.3,2950.6,0.4877]
[1765937446376,28.274155,2951.3,2950.6,0.4877]
[1765937446792,26.221263,2951.3,2950.6,0.4877]
[1765937446964,25.881856,2951.3,2950.6,0.4877]
[1765937447166,24.151901,2951.3,2950.7,0.4877]
[1765937447565,6.21106,2951.3,2951.2,0.9423]
[1765937448366,4.694825,2951.3,2951.2,0.9423]
[1765937448697,4.694825,2951.3,2950.8,0.4877]
[1765937448698,23.753604,2951.3,2950.8,0.4877]
[1765937449699,22.082858,2951.3,2950.8,0.4877]
[1765937450075,0.001,2951.4,2951.2,0.4546]
[1765937450277,0.001,2951.4,2951.3,0.9423]
[1765937450579,4.372049,2951.4,2951.3,0.9423]
[1765937450779,3.399912,2951.4,2951.3,0.9423]
[1765937450988,0.001,2951.4,2951.3,0.9423]
[1765937451396,5.983474,2951.4,2951.3,0.9423]
[1765937452671,5.983474,2951.4,2951.1,0.1875]
[1765937452867,0.001,2951.4,2951.1,0.6752]
[1765937453068,16.413949,2951.4,2951.3,0.4546]
[1765937454082,16.413949,2951.4,2951.3,0.9423]
[1765937454604,16.07458,2951.4,2951.3,0.9423]
[1765937455079,0.001,2951.4,2951.3,0.9423]
[1765937455570,0.001,2951.4,2951.3,1.3941209]
[1765937455771,0.001,2951.4,2951.3,4.78245824]
[1765937456189,0.001,2951.4,2951.3,1.3941209]
[1765937456585,8.297935,2951.4,2951.3,0.9423]
[1765937456778,6.268457,2951.4,2951.3,0.9423]
[1765937456995,0.001,2951.4,2951.3,11.62554021]
[1765937457311,0.001,2951.9,2951.8,0.9423]
[1765937457473,0.001,2952.0,2951.3,17.92429512]
[1765937457474,0.001,2952.0,2951.9,7.70020287]
[1765937457678,0.001,2952.1,2952.0,0.9423]
[1765937458205,0.001,2952.1,2952.0,4.32983387]
[1765937460921,0.001,2952.1,2952.0,0.4877]
[1765937461086,0.001,2952.1,2952.0,0.9423]
[1765937461809,0.001,2952.1,2951.6,0.4877]
[1765937461986,0.001,2952.1,2951.6,3.87564519]
[1765937462190,0.001,2952.1,2951.7,0.4877]
[1765937463207,0.001,2952.1,2952.0,0.9423]
[1765937465006,0.001,2952.1,2952.0,4.76283639]
[1765937466103,0.001,2952.1,2951.5,6.45331525]
[1765937466431,0.001,2952.1,2951.7,0.4626]
[1765937467109,27.641394,2951.7,2951.6,0.466]
[1765937467317,30.0,2952.0,2951.6,0.466]
[1765937468326,24.011787,2952.0,2951.6,0.466]
[1765937468633,11.060828,2952.0,2951.4,0.4626]
[1765937469723,22.840353,2951.9,2951.4,0.4626]
[1765937469892,22.409402,2951.9,2951.4,0.4626]
[1765937470098,14.553042,2951.9,2951.5,0.4626]
[1765937470716,14.553042,2951.9,2951.3,0.4646]
[1765937471824,30.0,2951.8,2951.3,0.4646]
[1765937472800,23.865891,2951.8,2951.7,0.466]
[1765937473823,1.56702248,2951.9,2951.7,0.466]
[1765937474023,23.84725,2951.8,2951.7,0.466]
[1765937474998,20.223899,2951.7,2951.6,0.466]
[1765937475198,25.186601,2951.8,2951.6,0.466]
[1765937475418,24.84725,2951.8,2951.6,0.466]
[1765937476010,25.186601,2951.8,2951.6,0.466]
[1765937476319,24.84725,2951.8,2951.6,0.466]
[1765937476827,24.84725,2951.8,2951.7,0.9286]
[1765937477027,23.84725,2951.8,2951.7,0.466]
[1765937478199,23.803982,2951.8,2951.7,0.466]
[1765937478928,30.261982,2951.8,2951.7,0.9286]
[1765937479131,30.324495,2951.8,2951.7,0.9286]
[1765937480136,13.679624,2951.8,2951.7,0.9286]
[1765937480306,12.715531,2951.8,2951.7,0.9286]
[1765937480835,3.204834,2951.9,2951.8,0.9286]
[1765937481020,3.204834,2951.9,2951.8,5.75722384]
[1765937481199,8.824508,2951.9,2951.8,5.75722384]
[1765937482432,8.742625,2951.9,2951.8,5.75722384]
[1765937482730,0.001,2951.9,2951.8,14.88832722]
[1765937484610,0.001,2951.9,2951.8,6.67193999]
[1765937484809,0.001,2951.9,2951.8,5.75722384]
[1765937485407,0.001,2951.9,2951.8,10.58584768]
[1765937486307,0.001,2951.9,2951.8,13.97361107]
[1765937486528,0.001,2951.9,2951.8,10.58584768]
[1765937487341,0.001,2951.9,2951.8,13.97361107]
[1765937487639,0.001,2951.9,2951.8,15.76365963]
[1765937489441,0.001,2952.5,2952.4,0.9286]
[1765937489741,0.001,2952.5,2952.4,5.75722384]
[1765937490238,0.001,2952.5,2952.4,0.9286]
[1765937490416,13.353156,2952.4,2952.3,4.82862384]
[1765937490612,7.167525,2952.4,2952.3,5.29462384]
[1765937490814,4.909268,2952.4,2952.3,5.75722384]
[1765937491510,4.909268,2952.4,2952.3,7.38074839]
[1765937492739,4.909268,2952.4,2952.3,10.76793803]
[1765937493514,4.909268,2952.4,2952.3,7.38074839]
[1765937493739,29.142607,2952.4,2952.3,0.9286]
[1765937494040,30.7305677,2952.4,2952.3,0.9286]
[1765937494742,32.9154607,2952.4,2952.3,0.9286]
[1765937495441,24.1330797,2952.4,2952.3,0.9286]
[1765937495614,23.5285607,2952.4,2952.3,0.9286]
[1765937495810,23.710342,2952.4,2952.3,0.466]
[1765937496040,23.710342,2952.4,2952.1,0.6673]
[1765937496243,23.710342,2952.4,2951.9,6.92834839]
[1765937496244,27.174545,2952.3,2951.9,6.92834839]
[1765937496462,15.77921,2952.1,2951.8,0.002]
[1765937496618,30.0,2952.3,2951.8,0.002]
[1765937496810,30.0,2952.2,2951.8,0.002]
[1765937497414,0.0527,2951.9,2951.8,0.002]
[1765937497635,30.0,2952.2,2951.8,0.002]
[1765937497844,21.644786,2951.9,2951.8,0.002]
[1765937498846,30.0,2952.0,2951.8,0.002]
[1765937499328,30.0527,2951.9,2951.8,0.002]
[1765937499885,0.0527,2951.9,2951.8,0.002]
[1765937500019,30.0527,2951.9,2951.8,0.002]
[1765937500212,31.60199,2951.9,2951.8,0.002]
[1765937501850,31.54929,2951.9,2951.8,0.002]
[1765937502347,31.54929,2951.9,2951.8,0.4693]
[1765937503553,18.093046,2951.9,2951.8,0.9455]
[1765937503772,0.001,2952.0,2951.9,0.9435]
[1765937504137,2.197346,2952.0,2951.9,0.9435]
[1765937504646,0.001,2952.0,2951.9,0.9435]
[1765937505040,0.001,2952.0,2951.9,4.33114863]
[1765937505247,2.314954,2952.0,2951.9,4.33114863]
[1765937505545,2.314954,2952.0,2951.9,0.9435]
[1765937506858,0.001,2952.0,2951.9,4.76446989]
[1765937507649,2.193954,2952.0,2951.9,4.76446989]
[1765937507880,0.001,2952.0,2951.9,4.76446989]
[1765937510056,0.001,2952.0,2951.9,4.76646989]
[1765937513380,0.001,2952.0,2951.9,14.41771915]
[1765937513679,0.001,2952.0,2951.9,14.95471915]
[1765937517781,30.0537,2952.0,2951.9,4.82762463]
[1765937519175,30.0537,2952.0,2951.9,0.002]
[1765937519375,30.0537,2952.0,2951.9,4.82762463]
[1765937519773,0.0537,2952.0,2951.9,4.82762463]
[1765937519980,30.001,2952.0,2951.9,4.82762463]
[1765937520156,30.001,2952.0,2951.9,0.002]
[1765937520157,33.0011,2952.0,2951.9,0.002]
[1765937520488,33.0538,2952.0,2951.9,0.002]
[1765937520660,33.1065,2952.0,2951.9,0.002]
[1765937520855,33.0538,2952.0,2951.9,0.002]
[1765937521160,33.1065,2952.0,2951.9,0.002]
[1765937521789,3.1065,2952.0,2951.9,0.002]
[1765937521984,30.1064,2952.0,2951.9,0.002]
[1765937523092,30.001,2952.0,2951.9,0.4693]
[1765937523387,30.1064,2952.0,2951.9,0.002]
[1765937523590,30.0537,2952.0,2951.9,0.002]
[1765937523778,0.0537,2952.0,2951.9,0.002]
[1765937523979,30.0537,2952.0,2951.9,0.002]
[1765937524197,5.717697,2952.0,2951.9,10.61384926]
[1765937524493,0.001,2952.0,2951.9,10.61384926]
[1765937525468,0.001,2952.0,2951.9,7.71219895]
[1765937526562,0.001,2952.0,2951.9,11.09984758]
[1765937526764,0.001,2952.0,2951.9,12.60250844]
[1765937536018,0.001,2952.0,2951.9,13.00801244]
[1765937536220,0.001,2952.0,2951.9,13.88434296]